[Event "Live Chess"]
[Site "Chess.com"]
[Date "2021.02.28"]
[Round "-"]
[White "Thomson, Neil"]
[Black "Sanger, Jake M"]
[Result "1-0"]
[BlackElo "1672"]
[CurrentPosition "8/6RP/6P1/p4k1r/Kp6/1P6/1P6/8 b - -"]
[ECO "B56"]
[ECOUrl "https://www.chess.com/openings/Sicilian-Defense-Open-Classical-Variation"]
[EndDate "2021.02.28"]
[EndTime "12:14:53"]
[Link "https://www.chess.com/live/game/8249043805"]
[StartTime "11:01:15"]
[Termination "tuoksu won by resignation"]
[TimeControl "1500+10"]
[Timezone "UTC"]
[UTCDate "2021.02.28"]
[UTCTime "11:01:15"]
[WhiteElo "1664"]

1. e4 { [%clk 0:25:10] } 1... c5 { [%clk 0:25:10] } 2. Nf3 { [%clk 0:25:17.1] } 2... Nc6 { [%clk 0:25:18.5] } 3. d4 { [%clk 0:25:22.1] } 3... cxd4 { [%clk 0:25:11.2] } 4. Nxd4 { [%clk 0:25:32] } 4... Nf6 { [%clk 0:25:19.8] } 5. Nc3 { [%clk 0:25:38.6] } 5... d6 { [%clk 0:25:28.2] } 6. Bc4 { [%clk 0:25:25.6] } 6... e6 { [%clk 0:25:16.9] } 7. Be3 { [%clk 0:25:20.6] } 7... a6 { [%clk 0:24:25.5] } 8. Bb3 { [%clk 0:25:05.2] } 8... Be7 { [%clk 0:23:16] } 9. f4 { [%clk 0:23:15.6] } 9... Bd7 { [%clk 0:20:05.9] } 10. Qe2 { [%clk 0:21:34.1] } 10... Rc8 { [%clk 0:18:46.5] } 11. O-O { [%clk 0:16:32.4] } 11... b5 { [%clk 0:17:01] } 12. Nxc6 { [%clk 0:12:01.6] } 12... Bxc6 { [%clk 0:17:04.8] } 13. e5 { [%clk 0:12:02.1] } 13... dxe5 { [%clk 0:16:33.1] } 14. fxe5 { [%clk 0:12:09.2] } 14... Nd7 { [%clk 0:16:41.4] } 15. Qg4 { [%clk 0:11:27.6] } 15... Nc5 { [%clk 0:11:59.4] } 16. Qxg7 { [%clk 0:10:08.4] } 16... Rf8 { [%clk 0:12:00.7] } 17. Rad1 { [%clk 0:10:06.4] } 17... Qc7 { [%clk 0:11:49.4] } 18. Bh6 { [%clk 0:09:18.4] } 18... b4 { [%clk 0:09:51] } 19. Ne2 { [%clk 0:08:37.7] } 19... Nxb3 { [%clk 0:07:42] } 20. cxb3 { [%clk 0:08:19.3] } 20... Bb5 { [%clk 0:06:25.2] } 21. Rd2 { [%clk 0:06:46.2] } 21... Rd8 { [%clk 0:04:41.8] } 22. Rfd1 { [%clk 0:03:52.1] } 22... Qc5+ { [%clk 0:02:09.9] } 23. Nd4 { [%clk 0:02:26.4] } 23... Be2 { [%clk 0:01:29.8] } 24. Be3 { [%clk 0:00:15] } 24... Bxd1 { [%clk 0:01:08.4] } 25. Rxd1 { [%clk 0:00:21.4] } 25... f6 { [%clk 0:00:35.9] } 26. Qxh7 { [%clk 0:00:18.9] } 26... fxe5 { [%clk 0:00:29.1] } 27. Qh5+ { [%clk 0:00:19.1] } 27... Rf7 { [%clk 0:00:37] } 28. Rf1 { [%clk 0:00:16.2] } 28... exd4 { [%clk 0:00:29.1] } 29. Qxf7+ { [%clk 0:00:23.8] } 29... Kd7 { [%clk 0:00:37.8] } 30. Bf2 { [%clk 0:00:26.3] } 30... Rf8 { [%clk 0:00:42.6] } 31. Qg6 { [%clk 0:00:29] } 31... Bd6 { [%clk 0:00:18] } 32. Qg7+ { [%clk 0:00:28.3] } 32... Kc6 { [%clk 0:00:23] } 33. Qxd4 { [%clk 0:00:18.3] } 33... Qb5 { [%clk 0:00:15.2] } 34. Rc1+ { [%clk 0:00:23.1] } 34... Kd7 { [%clk 0:00:24.4] } 35. Bg3 { [%clk 0:00:21.8] } 35... Qd5 { [%clk 0:00:24.5] } 36. Qa7+ { [%clk 0:00:21.8] } 36... Kd8 { [%clk 0:00:17.1] } 37. Bxd6 { [%clk 0:00:23.1] } 37... Qxd6 { [%clk 0:00:19.6] } 38. h3 { [%clk 0:00:27] } 38... Qf4 { [%clk 0:00:21.9] } 39. Qb6+ { [%clk 0:00:27.6] } 39... Ke7 { [%clk 0:00:25.9] } 40. Rc7+ { [%clk 0:00:28.7] } 40... Kf6 { [%clk 0:00:27.4] } 41. Qf2 { [%clk 0:00:30.3] } 41... Qxf2+ { [%clk 0:00:21.4] } 42. Kxf2 { [%clk 0:00:40.2] } 42... Ke5+ { [%clk 0:00:30.5] } 43. Ke3 { [%clk 0:00:47.9] } 43... Rg8 { [%clk 0:00:39.5] } 44. Rc5+ { [%clk 0:00:41.5] } 44... Kd6 { [%clk 0:00:45.6] } 45. Rc2 { [%clk 0:00:47.5] } 45... Kd5 { [%clk 0:00:39.6] } 46. Rd2+ { [%clk 0:00:47.2] } 46... Ke5 { [%clk 0:00:34.3] } 47. Kf3 { [%clk 0:00:38.2] } 47... Rf8+ { [%clk 0:00:40.6] } 48. Kg3 { [%clk 0:00:46.6] } 48... Rf1 { [%clk 0:00:43] } 49. Re2+ { [%clk 0:00:32.3] } 49... Kd6 { [%clk 0:00:31] } 50. h4 { [%clk 0:00:28.9] } 50... Ra1 { [%clk 0:00:39.5] } 51. h5 { [%clk 0:00:27.9] } 51... Ke7 { [%clk 0:00:43.9] } 52. Rf2 { [%clk 0:00:20.9] } 52... e5 { [%clk 0:00:25] } 53. Kg4 { [%clk 0:00:19.3] } 53... e4 { [%clk 0:00:27.2] } 54. Rf4 { [%clk 0:00:15.7] } 54... Re1 { [%clk 0:00:18.7] } 55. Kf5 { [%clk 0:00:17.4] } 55... e3 { [%clk 0:00:21.4] } 56. Re4+ { [%clk 0:00:21.7] } 56... Kf7 { [%clk 0:00:27.9] } 57. Kf4 { [%clk 0:00:14.9] } 57... e2 { [%clk 0:00:27.6] } 58. Kf3 { [%clk 0:00:21.3] } 58... Ra1 { [%clk 0:00:17.9] } 59. Rxe2 { [%clk 0:00:27.5] } 59... Rxa2 { [%clk 0:00:26.9] } 60. g4 { [%clk 0:00:35.1] } 60... Ra1 { [%clk 0:00:33.7] } 61. Rf2 { [%clk 0:00:32.7] } 61... Kg7 { [%clk 0:00:30.2] } 62. Ke4 { [%clk 0:00:31.7] } 62... Rc1 { [%clk 0:00:22.7] } 63. Kd4 { [%clk 0:00:26.2] } 63... Kh6 { [%clk 0:00:13.1] } 64. Rf6+ { [%clk 0:00:17.2] } 64... Kg5 { [%clk 0:00:11.1] } 65. Rg6+ { [%clk 0:00:24.1] } 65... Kf4 { [%clk 0:00:19.5] } 66. h6 { [%clk 0:00:25.5] } 66... a5 { [%clk 0:00:26.4] } 67. h7 { [%clk 0:00:27.9] } 67... Rh1 { [%clk 0:00:31.5] } 68. Rg7 { [%clk 0:00:35.5] } 68... Rd1+ { [%clk 0:00:32.2] } 69. Kc4 { [%clk 0:00:38.3] } 69... Rh1 { [%clk 0:00:41.1] } 70. g5 { [%clk 0:00:46] } 70... Kf5 { [%clk 0:00:43.6] } 71. g6 { [%clk 0:00:47.8] } 71... Rh4+ { [%clk 0:00:21.9] } 72. Kb5 { [%clk 0:00:55.2] } 72... Rh5 { [%clk 0:00:30.6] } 73. Ka4 { [%clk 0:00:55.5] } 1-0

[Event "Live Chess"]
[Site "Chess.com"]
[Date "2021.02.28"]
[Round "-"]
[White "Smith, Peter R"]
[Black "Murdochy, Shivan"]
[Result "1-0"]
[BlackElo "1210"]
[CurrentPosition "4q3/2Q1bk2/pP1B2pp/P2Ppp2/8/7P/5PP1/6K1 b - -"]
[ECO "A04"]
[ECOUrl "https://www.chess.com/openings/Reti-Opening-Queens-Gambit-Invitation"]
[EndDate "2021.02.28"]
[EndTime "12:31:35"]
[Link "https://www.chess.com/live/game/8251389297"]
[StartTime "11:37:03"]
[Termination "peterthefairlygood won by resignation"]
[TimeControl "1500+10"]
[Timezone "UTC"]
[UTCDate "2021.02.28"]
[UTCTime "11:37:03"]
[WhiteElo "2013"]

1. Nf3 { [%clk 0:25:10] } 1... e6 { [%clk 0:25:10] } 2. b3 { [%clk 0:25:17.8] } 2... Nf6 { [%clk 0:24:33.4] } 3. Bb2 { [%clk 0:25:27.7] } 3... b6 { [%clk 0:24:08] } 4. e3 { [%clk 0:25:28.7] } 4... Bb7 { [%clk 0:24:15.4] } 5. d4 { [%clk 0:25:38] } 5... Be7 { [%clk 0:23:20.9] } 6. Nbd2 { [%clk 0:25:45] } 6... c5 { [%clk 0:22:56.3] } 7. Bd3 { [%clk 0:25:46.9] } 7... d6 { [%clk 0:19:38.7] } 8. O-O { [%clk 0:25:35.8] } 8... cxd4 { [%clk 0:19:33.9] } 9. exd4 { [%clk 0:25:43.8] } 9... Nbd7 { [%clk 0:19:38.6] } 10. c4 { [%clk 0:25:34.6] } 10... Qc7 { [%clk 0:18:28.7] } 11. Rc1 { [%clk 0:25:25] } 11... O-O { [%clk 0:17:21.1] } 12. Re1 { [%clk 0:24:57.9] } 12... Rfe8 { [%clk 0:17:01.7] } 13. Bb1 { [%clk 0:22:26.3] } 13... Bf8 { [%clk 0:13:55.2] } 14. Ne4 { [%clk 0:19:40.2] } 14... Nxe4 { [%clk 0:11:11.6] } 15. Bxe4 { [%clk 0:19:50.1] } 15... Nf6 { [%clk 0:11:02.4] } 16. Bxb7 { [%clk 0:18:07.3] } 16... Qxb7 { [%clk 0:11:10.1] } 17. d5 { [%clk 0:17:26.6] } 17... e5 { [%clk 0:10:27.7] } 18. Qd2 { [%clk 0:14:22.5] } 18... Rac8 { [%clk 0:08:45.7] } 19. Ng5 { [%clk 0:13:30.2] } 19... b5 { [%clk 0:07:39.6] } 20. Ne4 { [%clk 0:12:02.7] } 20... Nxe4 { [%clk 0:05:00.7] } 21. Rxe4 { [%clk 0:12:12.6] } 21... bxc4 { [%clk 0:05:07.8] } 22. Rexc4 { [%clk 0:11:42.4] } 22... Rxc4 { [%clk 0:04:24.3] } 23. Rxc4 { [%clk 0:11:52.3] } 23... Rc8 { [%clk 0:04:28.9] } 24. Qc2 { [%clk 0:11:27.6] } 24... Rxc4 { [%clk 0:02:47] } 25. Qxc4 { [%clk 0:11:37.5] } 25... h6 { [%clk 0:02:06.4] } 26. b4 { [%clk 0:09:59.3] } 26... Kh7 { [%clk 0:01:52.3] } 27. h3 { [%clk 0:09:24] } 27... Be7 { [%clk 0:01:51.4] } 28. b5 { [%clk 0:09:05.8] } 28... Qb6 { [%clk 0:01:12.6] } 29. Bc3 { [%clk 0:08:45] } 29... g6 { [%clk 0:00:13.6] } 30. Qc6 { [%clk 0:08:31.2] } 30... Qb8 { [%clk 0:00:17.6] } 31. Bb4 { [%clk 0:08:04.9] } 31... Kg7 { [%clk 0:00:23.5] } 32. a4 { [%clk 0:08:04.1] } 32... f5 { [%clk 0:00:10] } 33. a5 { [%clk 0:07:58.9] } 33... Kf7 { [%clk 0:00:18.9] } 34. b6 { [%clk 0:07:38] } 34... a6 { [%clk 0:00:18.9] } 35. Qc7 { [%clk 0:07:22.5] } 35... Qe8 { [%clk 0:00:23.5] } 36. Bxd6 { [%clk 0:07:14.9] } 1-0

[Event "Live Chess"]
[Site "Chess.com"]
[Date "2021.02.28"]
[Round "-"]
[White "Gillespie, David P"]
[Black "Hamilton, Stephen C"]
[Result "1/2-1/2"]
[BlackElo "1712"]
[CurrentPosition "8/8/pp5p/P3k2P/1PP1p3/4K3/8/8 b - -"]
[ECO "D00"]
[ECOUrl "https://www.chess.com/openings/Queens-Pawn-Opening-Chigorin-Variation-2...Nf6-3.Nf3-g6"]
[EndDate "2021.02.28"]
[EndTime "11:45:44"]
[Link "https://www.chess.com/live/game/8249007723"]
[StartTime "10:59:22"]
[Termination "Game drawn by agreement"]
[TimeControl "1510"]
[Timezone "UTC"]
[UTCDate "2021.02.28"]
[UTCTime "10:59:22"]
[WhiteElo "1690"]

1. d4 { [%clk 0:25:10] } 1... Nf6 { [%clk 0:25:10] } 2. Nf3 { [%clk 0:25:06.1] } 2... g6 { [%clk 0:25:08.3] } 3. Nc3 { [%clk 0:25:02.9] } 3... d5 { [%clk 0:25:05.8] } 4. Bf4 { [%clk 0:25:00.4] } 4... Bg7 { [%clk 0:25:04.4] } 5. e3 { [%clk 0:24:58.8] } 5... O-O { [%clk 0:25:02.8] } 6. Be2 { [%clk 0:24:56.8] } 6... c6 { [%clk 0:24:55.5] } 7. Ne5 { [%clk 0:24:48.6] } 7... Nbd7 { [%clk 0:24:50.7] } 8. h4 { [%clk 0:24:29.6] } 8... h6 { [%clk 0:21:57] } 9. h5 { [%clk 0:20:44.1] } 9... g5 { [%clk 0:21:52.8] } 10. Bg3 { [%clk 0:20:33.3] } 10... Nxe5 { [%clk 0:20:09.6] } 11. Bxe5 { [%clk 0:20:13.3] } 11... Bf5 { [%clk 0:19:38.3] } 12. f4 { [%clk 0:19:08.8] } 12... gxf4 { [%clk 0:18:41.6] } 13. Bxf4 { [%clk 0:17:46.4] } 13... Qd7 { [%clk 0:18:10.4] } 14. Qd2 { [%clk 0:16:41.3] } 14... Ne4 { [%clk 0:16:40.9] } 15. Nxe4 { [%clk 0:16:37.8] } 15... Bxe4 { [%clk 0:16:33.7] } 16. O-O-O { [%clk 0:16:33.5] } 16... c5 { [%clk 0:14:32.8] } 17. Bd3 { [%clk 0:15:16.3] } 17... cxd4 { [%clk 0:13:01.7] } 18. Bxe4 { [%clk 0:15:06] } 18... dxe4 { [%clk 0:12:52.8] } 19. exd4 { [%clk 0:14:56] } 19... Kh7 { [%clk 0:10:13.4] } 20. Rh3 { [%clk 0:14:52.4] } 20... Rac8 { [%clk 0:08:27.6] } 21. Kb1 { [%clk 0:14:44.3] } 21... Rfd8 { [%clk 0:07:38.6] } 22. c3 { [%clk 0:11:57.9] } 22... e5 { [%clk 0:06:36] } 23. dxe5 { [%clk 0:11:54.2] } 23... Qxd2 { [%clk 0:06:30.3] } 24. Rxd2 { [%clk 0:11:52] } 24... Rxd2 { [%clk 0:06:28.4] } 25. Bxd2 { [%clk 0:11:50.3] } 25... Bxe5 { [%clk 0:06:27.3] } 26. Rh4 { [%clk 0:10:47.9] } 26... f5 { [%clk 0:06:12.6] } 27. Bf4 { [%clk 0:10:46.1] } 27... Bf6 { [%clk 0:05:42.9] } 28. Rh1 { [%clk 0:10:28.1] } 28... Rd8 { [%clk 0:04:34.4] } 29. Kc2 { [%clk 0:10:18.1] } 29... Bg5 { [%clk 0:04:18.2] } 30. Rf1 { [%clk 0:09:10.9] } 30... Rd5 { [%clk 0:03:33.8] } 31. c4 { [%clk 0:08:55.5] } 31... Rc5 { [%clk 0:03:11.7] } 32. Kd2 { [%clk 0:05:48] } 32... Bxf4+ { [%clk 0:02:24.5] } 33. Rxf4 { [%clk 0:05:45.5] } 33... Kg7 { [%clk 0:02:23.2] } 34. b3 { [%clk 0:05:11.7] } 34... Kf6 { [%clk 0:02:00] } 35. g4 { [%clk 0:05:06.9] } 35... Kg5 { [%clk 0:01:54.7] } 36. Rxf5+ { [%clk 0:05:00.9] } 36... Rxf5 { [%clk 0:01:52.6] } 37. gxf5 { [%clk 0:04:59.9] } 37... Kxf5 { [%clk 0:01:51.6] } 38. Ke3 { [%clk 0:04:58.8] } 38... Ke5 { [%clk 0:01:43.9] } 39. b4 { [%clk 0:04:52.9] } 39... b6 { [%clk 0:01:35.9] } 40. a4 { [%clk 0:04:44.9] } 40... a6 { [%clk 0:01:23.9] } 41. a5 { [%clk 0:03:28.2] } 1/2-1/2

[Event "Live Chess"]
[Site "Chess.com"]
[Date "2021.02.28"]
[Round "-"]
[White "Smith, Bob"]
[Black "Gillespie, Gary D"]
[Result "0-1"]
[BlackElo "1625"]
[CurrentPosition "8/3b2k1/3r1p2/1p1Np1p1/p1P3P1/P2P1PK1/1R6/8 w - -"]
[ECO "B01"]
[ECOUrl "https://www.chess.com/openings/Scandinavian-Defense-Mieses-Kotrc-Variation-3.Nc3"]
[EndDate "2021.02.28"]
[EndTime "12:14:29"]
[Link "https://www.chess.com/live/game/8249633591"]
[StartTime "11:10:39"]
[Termination "Suvorov63 won on time"]
[TimeControl "1500+10"]
[Timezone "UTC"]
[UTCDate "2021.02.28"]
[UTCTime "11:10:39"]
[WhiteElo "1357"]

1. e4 { [%clk 0:25:10] } 1... d5 { [%clk 0:25:10] } 2. exd5 { [%clk 0:25:01.1] } 2... Qxd5 { [%clk 0:25:19.9] } 3. Nc3 { [%clk 0:25:02.8] } 3... Qe5+ { [%clk 0:25:25.3] } 4. Qe2 { [%clk 0:25:02.3] } 4... Qxe2+ { [%clk 0:25:33.2] } 5. Bxe2 { [%clk 0:25:07.9] } 5... Nf6 { [%clk 0:25:39.2] } 6. Nf3 { [%clk 0:25:07.1] } 6... c6 { [%clk 0:25:46.8] } 7. O-O { [%clk 0:25:10.1] } 7... Bf5 { [%clk 0:25:52] } 8. Re1 { [%clk 0:24:43.4] } 8... h6 { [%clk 0:22:36.7] } 9. Bc4 { [%clk 0:24:24.4] } 9... e6 { [%clk 0:21:58.4] } 10. d3 { [%clk 0:23:50] } 10... Nbd7 { [%clk 0:21:20.2] } 11. Be3 { [%clk 0:23:06.2] } 11... Be7 { [%clk 0:20:22.7] } 12. Rad1 { [%clk 0:22:20.5] } 12... O-O { [%clk 0:20:22.6] } 13. Rd2 { [%clk 0:20:56.2] } 13... Rfe8 { [%clk 0:19:31.9] } 14. Bf4 { [%clk 0:18:53.1] } 14... Nb6 { [%clk 0:18:54.6] } 15. Bb3 { [%clk 0:18:42.2] } 15... a5 { [%clk 0:18:10.2] } 16. a3 { [%clk 0:17:37.6] } 16... a4 { [%clk 0:18:10.7] } 17. Ba2 { [%clk 0:17:40.8] } 17... Nbd5 { [%clk 0:16:55] } 18. Nxd5 { [%clk 0:16:50.8] } 18... Nxd5 { [%clk 0:17:04.9] } 19. Bg3 { [%clk 0:15:09.8] } 19... Red8 { [%clk 0:14:06.1] } 20. Nd4 { [%clk 0:12:27.5] } 20... Bg6 { [%clk 0:12:57.6] } 21. Ne2 { [%clk 0:11:55.9] } 21... Bd6 { [%clk 0:12:29] } 22. Bxd6 { [%clk 0:11:34.1] } 22... Rxd6 { [%clk 0:12:38.9] } 23. Bxd5 { [%clk 0:09:59.1] } 23... cxd5 { [%clk 0:10:39.2] } 24. Nc3 { [%clk 0:09:22.5] } 24... Rb6 { [%clk 0:09:54.1] } 25. Rb1 { [%clk 0:07:49.5] } 25... f6 { [%clk 0:09:07.5] } 26. Na2 { [%clk 0:07:44.5] } 26... Rc8 { [%clk 0:08:36.9] } 27. Nb4 { [%clk 0:07:43.5] } 27... Bf7 { [%clk 0:07:47] } 28. Re1 { [%clk 0:06:57.2] } 28... g5 { [%clk 0:06:23.1] } 29. Rde2 { [%clk 0:05:55.1] } 29... Kg7 { [%clk 0:05:30.4] } 30. f3 { [%clk 0:05:38.8] } 30... d4 { [%clk 0:04:54.7] } 31. Kf2 { [%clk 0:04:58.4] } 31... e5 { [%clk 0:05:02.1] } 32. g4 { [%clk 0:04:50.3] } 32... Rd6 { [%clk 0:03:40] } 33. h3 { [%clk 0:03:57.7] } 33... Bd5 { [%clk 0:03:40.6] } 34. Kg3 { [%clk 0:03:25.2] } 34... Kg6 { [%clk 0:03:46.3] } 35. Rc1 { [%clk 0:02:39.6] } 35... Be6 { [%clk 0:03:36.1] } 36. c3 { [%clk 0:01:43.5] } 36... dxc3 { [%clk 0:03:43.7] } 37. Rxc3 { [%clk 0:01:37.4] } 37... Rxc3 { [%clk 0:03:49.3] } 38. bxc3 { [%clk 0:01:45.9] } 38... Kf7 { [%clk 0:03:32.5] } 39. c4 { [%clk 0:01:43.7] } 39... Ke7 { [%clk 0:03:11] } 40. Rb2 { [%clk 0:01:36.8] } 40... b6 { [%clk 0:02:17.8] } 41. h4 { [%clk 0:00:54.2] } 41... Kf7 { [%clk 0:01:37.8] } 42. hxg5 { [%clk 0:00:33.1] } 42... hxg5 { [%clk 0:01:40.8] } 43. Rh2 { [%clk 0:00:27.8] } 43... Kg7 { [%clk 0:01:47.7] } 44. Rb2 { [%clk 0:00:19.3] } 44... Bd7 { [%clk 0:01:42.2] } 45. Nd5 { [%clk 0:00:19.2] } 45... b5 { [%clk 0:01:33] } 0-1

[Event "Live Chess"]
[Site "Chess.com"]
[Date "2021.02.28"]
[Round "-"]
[White "Wilkinson, Kevin"]
[Black "Ittigi, Tilak"]
[Result "1-0"]
[BlackElo "1209"]
[CurrentPosition "6k1/6P1/3P3K/3B4/8/8/5P2/8 b - -"]
[ECO "A16"]
[ECOUrl "https://www.chess.com/openings/English-Opening-Anglo-Indian-Queens-Knight-Variation-2...g6-3.g3"]
[EndDate "2021.02.28"]
[EndTime "11:56:35"]
[Link "https://www.chess.com/live/game/8249036949"]
[StartTime "11:01:07"]
[Termination "ImGonnaHorseYou won by checkmate"]
[TimeControl "1500+10"]
[Timezone "UTC"]
[UTCDate "2021.02.28"]
[UTCTime "11:01:07"]
[WhiteElo "1666"]

1. c4 { [%clk 0:25:10] } 1... Nf6 { [%clk 0:25:10] } 2. Nc3 { [%clk 0:25:13.9] } 2... g6 { [%clk 0:25:11.1] } 3. g3 { [%clk 0:25:20] } 3... Bg7 { [%clk 0:25:14.3] } 4. Bg2 { [%clk 0:25:26.4] } 4... c6 { [%clk 0:25:02.7] } 5. e4 { [%clk 0:22:02.6] } 5... d6 { [%clk 0:24:46.6] } 6. Nge2 { [%clk 0:21:46.2] } 6... Nbd7 { [%clk 0:23:13.7] } 7. d3 { [%clk 0:21:24.9] } 7... Ne5 { [%clk 0:23:06.1] } 8. O-O { [%clk 0:19:44] } 8... c5 { [%clk 0:22:58.5] } 9. Be3 { [%clk 0:18:37] } 9... b6 { [%clk 0:22:53.1] } 10. Rb1 { [%clk 0:18:32.8] } 10... a6 { [%clk 0:22:58.7] } 11. b4 { [%clk 0:18:15] } 11... Qc7 { [%clk 0:22:48.3] } 12. bxc5 { [%clk 0:18:08.1] } 12... bxc5 { [%clk 0:22:47] } 13. Qd2 { [%clk 0:17:08.2] } 13... O-O { [%clk 0:22:33.8] } 14. Rb3 { [%clk 0:15:27.5] } 14... Bd7 { [%clk 0:22:14.4] } 15. Nf4 { [%clk 0:14:54.6] } 15... Rab8 { [%clk 0:21:51] } 16. Nfd5 { [%clk 0:14:48.4] } 16... Nxd5 { [%clk 0:21:52.6] } 17. Nxd5 { [%clk 0:14:55.8] } 17... Qd8 { [%clk 0:21:44.3] } 18. Rfb1 { [%clk 0:14:52.5] } 18... Rxb3 { [%clk 0:21:40.9] } 19. Rxb3 { [%clk 0:14:59] } 19... e6 { [%clk 0:21:46.9] } 20. Nb6 { [%clk 0:14:18.5] } 20... Qc7 { [%clk 0:21:32.9] } 21. Bh6 { [%clk 0:13:34.6] } 21... Nc6 { [%clk 0:21:12.5] } 22. Bxg7 { [%clk 0:12:42.5] } 22... Kxg7 { [%clk 0:21:15.8] } 23. h4 { [%clk 0:11:54.7] } 23... Rb8 { [%clk 0:19:53.5] } 24. Qb2+ { [%clk 0:09:06.2] } 24... Nd4 { [%clk 0:19:35.8] } 25. Nxd7 { [%clk 0:07:28.5] } 25... Rxb3 { [%clk 0:18:42.7] } 26. axb3 { [%clk 0:07:10.7] } 26... Qxd7 { [%clk 0:18:44.2] } 27. b4 { [%clk 0:07:08.5] } 27... Qb7 { [%clk 0:18:27.7] } 28. b5 { [%clk 0:06:30.3] } 28... axb5 { [%clk 0:18:27.4] } 29. e5 { [%clk 0:06:08.6] } 29... Qb6 { [%clk 0:17:52.9] } 30. exd6 { [%clk 0:05:47.1] } 30... Qxd6 { [%clk 0:17:44] } 31. cxb5 { [%clk 0:05:41.5] } 31... Qb6 { [%clk 0:17:45.5] } 32. Bc6 { [%clk 0:04:15.3] } 32... e5 { [%clk 0:17:25.6] } 33. Be8 { [%clk 0:03:22.8] } 33... Qb8 { [%clk 0:17:03.1] } 34. Bd7 { [%clk 0:02:27.8] } 34... Qb7 { [%clk 0:16:00] } 35. Bh3 { [%clk 0:01:43.6] } 35... Qxb5 { [%clk 0:15:00.8] } 36. Qxb5 { [%clk 0:01:32.2] } 36... Nxb5 { [%clk 0:15:03.7] } 37. Bg2 { [%clk 0:01:36.6] } 37... Kf6 { [%clk 0:14:58] } 38. Be4 { [%clk 0:01:34.5] } 38... Ke6 { [%clk 0:14:43] } 39. Bc6 { [%clk 0:01:01.7] } 39... Nd4 { [%clk 0:14:34.1] } 40. Bb7 { [%clk 0:00:53.8] } 40... f5 { [%clk 0:13:30] } 41. Kf1 { [%clk 0:00:27.9] } 41... h6 { [%clk 0:12:44.1] } 42. Ke1 { [%clk 0:00:30.7] } 42... g5 { [%clk 0:12:40] } 43. hxg5 { [%clk 0:00:38.5] } 43... hxg5 { [%clk 0:12:48.2] } 44. Kd2 { [%clk 0:00:37] } 44... f4 { [%clk 0:12:27.1] } 45. g4 { [%clk 0:00:32.9] } 45... Nf3+ { [%clk 0:12:09.8] } 46. Bxf3 { [%clk 0:00:37.2] } 46... Kd6 { [%clk 0:11:51.6] } 47. Kc3 { [%clk 0:00:42.9] } 47... Ke6 { [%clk 0:11:37.1] } 48. Kc4 { [%clk 0:00:49.8] } 48... Kd6 { [%clk 0:11:45.9] } 49. Be4 { [%clk 0:00:56.2] } 49... Ke6 { [%clk 0:11:49.2] } 50. Kxc5 { [%clk 0:01:02.5] } 50... Kf6 { [%clk 0:11:53.9] } 51. Kd5 { [%clk 0:01:08.7] } 51... f3 { [%clk 0:11:59] } 52. Bxf3 { [%clk 0:01:14.3] } 52... Ke7 { [%clk 0:12:07.3] } 53. Kxe5 { [%clk 0:01:22.4] } 53... Ke8 { [%clk 0:12:12.4] } 54. Kf5 { [%clk 0:01:31.1] } 54... Kf8 { [%clk 0:12:21.2] } 55. Kxg5 { [%clk 0:01:40] } 55... Ke8 { [%clk 0:12:28.4] } 56. Kh6 { [%clk 0:01:48.8] } 56... Kf7 { [%clk 0:12:37.2] } 57. g5 { [%clk 0:01:56.2] } 57... Kf8 { [%clk 0:12:45.2] } 58. g6 { [%clk 0:02:04.2] } 58... Kg8 { [%clk 0:12:54] } 59. d4 { [%clk 0:02:12.7] } 59... Kh8 { [%clk 0:13:02.2] } 60. d5 { [%clk 0:02:15.3] } 60... Kg8 { [%clk 0:13:11.3] } 61. d6 { [%clk 0:02:23.6] } 61... Kf8 { [%clk 0:13:20.5] } 62. g7+ { [%clk 0:02:24.2] } 62... Kg8 { [%clk 0:13:20.7] } 63. Bd5# { [%clk 0:02:32.6] } 1-0